Cogmind - Beta 13 @@@ ROGUE MODE // 2024.04.08 @ 17:56:35 Player: Jennifer Result: Self-destructed Performance ------------- Evolutions (3) 1500 Regions Visited (5) 1000 Robots Destroyed (127) 635 Value Destroyed (3835) 3835 Prototype IDs (2) 40 Alien Tech Used (0) 0 Bonus (199) 199 TOTAL SCORE: 7209 Bonus ------- High Alert Combat Kills 199 Cogmind --------- Core Integrity 560/700 Matter 19/300 Energy 300/300 System Corruption 2% Temperature Warm (159) Movement Treading (165) Location -7/Factory Parts ------- > --- POWER (1) -------- Enhanced Nuclear Core > --- PROPULSION (4) --- Light Treads Armored Treads Armored Treads Medium Treads > --- UTILITY (5) ------ Cooling System Large Storage Unit Weapon Cycler Hardened Heavy Armor Plating > --- WEAPON (3) ------- Assault Cannon Advanced Assault Cannon Advanced Assault Cannon > --- INVENTORY (15) --- Light Nuclear Core Improved Deuterium Engine Light Treads Advanced Treads Improved Heat Sink Coolant Injector Weapon Cycler Improved Shield Generator High-powered Shotgun Advanced Assault Cannon Advanced Assault Cannon Advanced Assault Cannon Missile Launcher Great Maul Peak State ------------ > --- POWER ------------ Enhanced Nuclear Core > --- PROPULSION ------- Light Treads Armored Treads Medium Treads Medium Treads > --- UTILITY ---------- Cooling System Large Storage Unit Weapon Cycler Hardened Heavy Armor Plating > --- WEAPON ----------- Assault Cannon Advanced Assault Cannon Advanced Assault Cannon > --- INVENTORY -------- Light Nuclear Core Improved Deuterium Engine Light Treads Armored Treads Advanced Treads Improved Heat Sink Coolant Injector Weapon Cycler Improved Shield Generator High-powered Shotgun Advanced Assault Cannon Advanced Assault Cannon Advanced Assault Cannon Missile Launcher Great Maul [Rating: 48] Favorites ----------- Power Improved Ion Engine Engine Improved Ion Engine Power Core Enhanced Nuclear Core Propulsion Light Treads Treads Light Treads Utility Large Storage Unit Device Cooling System Storage Large Storage Unit Processor Improved Targeting Computer Protection Medium Armor Plating Weapon Improved Light Cannon Energy Cannon Plasma Cannon Ballistic Gun Assault Rifle Ballistic Cannon Improved Light Cannon Launcher Missile Launcher Build | -11 -10 -9 -9 -8 -7 ------- Run | Yrd Mat Mat Min Mat Fac Slots Evolved 6 | . . 2 . 2 2 Power . | . . . . . . Propulsion 2 | . . 1 . 1 . Utility 3 | . . 1 . . 2 Weapon 1 | . . . . 1 . Parts Attached 95 | 6 11 24 . 28 26 Power 7 | 1 1 2 . 1 2 Engine 6 | 1 1 2 . 1 1 Core 1 | . . . . . 1 Reactor . | . . . . . . Propulsion 30 | 2 2 7 . 8 11 Treads 30 | 2 2 7 . 8 11 Leg . | . . . . . . Wheel . | . . . . . . Hover . | . . . . . . Flight . | . . . . . . Utility 12 | 1 2 2 . 3 4 Device 2 | . . . . 1 1 Storage 2 | 1 1 . . . . Processor 1 | . 1 . . . . Hackware . | . . . . . . Protection 7 | . . 2 . 2 3 Artifact . | . . . . . . Weapon 46 | 2 6 13 . 16 9 Energy Gun . | . . . . . . Energy Cannon 1 | . . . . . 1 Ballistic Gun 8 | 2 1 1 . 4 . Ballistic Cannon 25 | . 3 8 . 9 5 Launcher 12 | . 2 4 . 3 3 Special Weapon . | . . . . . . Impact Weapon . | . . . . . . Slashing Weapon . | . . . . . . Piercing Weapon . | . . . . . . Special Melee Weapon . | . . . . . . Unidentified Prototypes 2 | . . 1 . . 1 Parts Lost 15 | . 2 6 . 5 2 Power 1 | . . . . . 1 Propulsion 7 | . 1 3 . 2 1 Utility 3 | . . 1 . 2 . Weapon 4 | . 1 2 . 1 . Highest Loss Streak 2 | . 1 2 . 1 1 To Critical Strikes 1 | . . 1 . . . Average Slot Usage (%) 97 | . 99 93 100 99 94 Engine 8 | . 14 10 11 9 3 Treads 31 | . 27 32 33 35 29 Device 3 | . . . . 1 9 Storage 9 | . 14 11 11 9 7 Processor 9 | . 14 11 11 9 4 Protection 7 | . . 5 11 7 9 Ballistic Gun 5 | . 18 . . 6 1 Ballistic Cannon 17 | . 7 20 22 18 19 Naked Turns . | . . . . . . Heaviest Build 70 | 12 33 42 42 46 70 Greatest Support 96 | 40 40 60 60 82 96 Greatest Overweight (x) 1 | . 1 1 . . . Average Overweight (x) . | . . . . . . Largest Inventory Capacity 15 | 8 15 15 15 15 15 Average Capacity 14 | 6 12 15 15 15 15 Most Carried 15 | 3 11 15 15 15 15 Average Carried 13 | 1 8 13 14 14 14 Final Capacity 15 | 8 15 15 15 15 15 Final Carried 15 | 3 11 15 15 15 14 Class Distribution -------------------- 46% | Mutant 29% | Gunner 18% | Tank 5% | Scavenger-Gunner Dominant Class ---------------- Mutant | -10/Materials Mutant | -9/Materials Mutant | -9/Mines Gunner | -8/Materials Tank | -7/Factory Resources | -11 -10 -9 -9 -8 -7 ----------- Run | Yrd Mat Mat Min Mat Fac Matter Collected 3251 | 209 479 739 40 912 872 Remotely . | . . . . . . Salvage Created 3046 | . 660 880 73 709 724 Parts 192 | . 50 70 4 29 39 Haulers Intercepted 5 | . 2 3 . . . Recyclers Shooed 2 | . . 1 . . 1 Parts Field Recycled . | . . . . . . Retrieved Matter . | . . . . . . Parts Self-Destructed . | . . . . . . Prevented . | . . . . . . Kills | -11 -10 -9 -9 -8 -7 ------- Run | Yrd Mat Mat Min Mat Fac Combat Hostiles Destroyed 98 | . 18 28 4 26 22 Guns 10 | . 7 . . 2 1 Cannons 61 | . 6 16 4 18 17 AOE 27 | . 5 12 . 6 4 Classes Destroyed 14 | . 6 3 2 1 2 Worker 7 | . 2 3 . 1 1 Builder 6 | . . 2 . 1 3 Hauler 5 | . 2 3 . . . Recycler 5 | . . 2 . 1 2 Operator 1 | . 1 . . . . Watcher 5 | . 3 1 . . 1 Swarmer 27 | . 6 12 . 5 4 Grunt 42 | . 12 10 2 9 9 Brawler 2 | . . . 1 1 . Duelist 1 | . . . . . 1 Sentry 18 | . . 6 . 8 4 Demolisher 1 | . . . 1 . . Hunter 4 | . . . . 3 1 Programmer 3 | . . . . . 3 Best Kill Streak 8 | . 7 5 2 8 5 Combat Bots Only 7 | . 4 5 2 7 5 Max Kills in Single Turn 5 | . 5 4 1 2 4 Gunslinging 1 | . 1 . . . . Exploded 4 | . 4 3 . 2 2 Melee . | . . . . . . Uniques/NPCs Destroyed . | . . . . . . Combat | -11 -10 -9 -9 -8 -7 -------- Run | Yrd Mat Mat Min Mat Fac Hostile Shots Fired 543 | . 56 115 5 133 234 Missed 173 | . 15 34 . 37 87 Damage Taken 4931 | . 562 949 235 1469 1716 Core 548 | . 137 123 56 92 140 Absorbed by Shields . | . . . . . . Ignored by Resistances 56 | . . . . . 56 Regen/Repaired (Parts) 249 | . . . . . 249 Core Remaining (%) 70 | 100 45 . 55 83 . Volleys Fired 236 | . 50 63 5 63 55 Largest 3 | . 2 2 2 3 3 Hottest 176 | . 70 78 78 119 176 Shots Fired 519 | . 91 116 10 149 153 Gun 105 | . 56 . . 33 16 Cannon 393 | . 31 107 10 112 133 Launcher 21 | . 4 9 . 4 4 Special . | . . . . . . Kinetic 491 | . 87 107 10 145 142 Thermal 7 | . . . . . 7 Explosive 21 | . 4 9 . 4 4 Electromagnetic . | . . . . . . Robot Hit Streak 33 | . 10 10 3 33 18 Robot Miss Streak 4 | . 4 4 2 2 3 Penetration Max . | . . . . . . Secondary Targets 1 | . 1 . . . . Max Gunslinging Chain 1 | . 1 . . . . Shots Hit Robots 347 | . 52 71 6 115 103 Core Hits 166 | . 32 42 5 44 43 Critical Kills . | . . . . . . Critical Parts Destroyed . | . . . . . . Critical Strikes 16 | . . 4 . 2 10 Blast 16 | . . 4 . 2 10 Melee Attacks . | . . . . . . Impact . | . . . . . . Slashing . | . . . . . . Piercing . | . . . . . . Sneak Attacks . | . . . . . . Combat Hostiles . | . . . . . . Follow-up Attacks . | . . . . . . Damage Inflicted 9963 | . 1077 1956 122 3099 3709 Guns 1099 | . 429 . . 421 249 Cannons 6210 | . 285 1408 122 1961 2434 Explosions 2517 | . 344 536 . 692 945 Melee . | . . . . . . Ramming 137 | . 19 12 . 25 81 Kinetic 7160 | . 714 1408 122 2382 2534 Thermal 1015 | . . 118 . 328 569 Explosive 1651 | . 344 418 . 364 525 Electromagnetic . | . . . . . . Impact . | . . . . . . Slashing . | . . . . . . Piercing . | . . . . . . Highest Corruption 2 | . . . . . 2 Average Corruption 1 | . . . . . 1 Corruption Purged . | . . . . . . Corruption Blocked . | . . . . . . Effects 7 | . . . . . 7 Message Errors 1 | . . . . . 1 Matter Fused 4 | . . . . . 4 Heat Flow Errors 1 | . . . . . 1 Alerts 1 | . . . . . 1 Overload Shots . | . . . . . . Overflow Damage 428 | . . 114 . 197 117 Projectiles 61 | . . 22 . 10 29 Explosions 367 | . . 92 . 187 88 Melee . | . . . . . . Knockbacks 48 | . 4 12 . 13 19 Impact . | . . . . . . Kinetic 46 | . 4 12 . 13 17 Secondary 2 | . . . . . 2 Self-Inflicted Damage 218 | . 37 90 . 91 . Shots 6 | . 1 3 . 2 . Rammed 16 | . 3 2 . 4 7 Targets Rammed 21 | . 4 2 . 5 10 Kicked . | . . . . . . Crushed 5 | . 1 . . 1 3 Highest Temperature 436 | . 90 146 42 292 436 Average Temperature 69 | . 25 35 16 99 95 Received Heat Transfer 1509 | . 225 309 . 423 552 Effects 5 | . . . . 1 4 Shutdowns 1 | . . . . . 1 Interference 1 | . . . . 1 . Short Circuit 1 | . . . . . 1 Damage (minor) 2 | . . . . . 2 Siege Activations . | . . . . . . Robots Corrupted . | . . . . . . Combat Hostiles . | . . . . . . Parts Fried . | . . . . . . Impact Corruptions . | . . . . . . Robots Melted . | . . . . . . Combat Hostiles . | . . . . . . Parts Melted . | . . . . . . Heat Transferred 800 | . . 100 . 150 550 Parts Sabotaged . | . . . . . . Parts Stolen . | . . . . . . Parts Stripped . | . . . . . . Power Chain Reactions . | . . . . . . Alert | -11 -10 -9 -9 -8 -7 ------- Run | Yrd Mat Mat Min Mat Fac Peak Influence 708 | . 338 708 244 374 609 Initial 244 | . . 142 244 23 147 Average 270 | . 124 524 128 209 337 Maximum Alert Level 3 | . 1 3 1 1 2 Low Security (%) 36 | 100 75 3 61 45 12 Level 1 40 | . 24 11 38 54 54 Level 2 22 | . . 80 . . 32 Level 3 . | . . 4 . . . Level 4 . | . . . . . . Level 5 . | . . . . . . High Security . | . . . . . . Max Security . | . . . . . . Squads Dispatched 25 | . 4 7 . 4 10 Investigation 8 | . 1 1 . 3 3 Extermination 2 | . . . . . 2 Reinforcement 10 | . 3 5 . 1 1 Assault 3 | . . 1 . . 2 Garrison 2 | . . . . . 2 Intercept . | . . . . . . Searches Triggered . | . . . . . . Construction Impeded 1 | . . 1 . . . Haulers Reinforced . | . . . . . . Active Scanning Responses . | . . . . . . Cargo Convoy Interrupts . | . . . . . . Stealth | -11 -10 -9 -9 -8 -7 --------- Run | Yrd Mat Mat Min Mat Fac Distress Signals 9 | . 2 4 . 1 2 Communications Jammed . | . . . . . . Distress Signals . | . . . . . . Times Spotted 170 | . 27 49 5 48 41 Peak Tracking Total 8 | . 5 6 2 5 8 Tactical Retreats 9 | . 1 . 1 2 5 Traps | -11 -10 -9 -9 -8 -7 ------- Run | Yrd Mat Mat Min Mat Fac Traps Triggered 12 | . 5 3 . 2 2 Indirectly . | . . . . . . Trap Hack Attempts . | . . . . . . Triggered . | . . . . . . Disarmed . | . . . . . . Reprogrammed . | . . . . . . Reused . | . . . . . . Traps Extracted . | . . . . . . Installed . | . . . . . . Triggered . | . . . . . . Machines | -11 -10 -9 -9 -8 -7 ---------- Run | Yrd Mat Mat Min Mat Fac Machines Disabled 20 | . 1 3 . 6 10 Max in Single Turn 8 | . 1 1 . 2 8 Garrison Access 2 | . . . . 1 1 Machines Repaired . | . . . . . . Machines Dismantled . | . . . . . . Machines Sabotaged . | . . . . . . Overloaded Fab Kills . | . . . . . . Hacking | -11 -10 -9 -9 -8 -7 --------- Run | Yrd Mat Mat Min Mat Fac Machines Accessed 27 | . 2 6 . 12 7 Terminals 20 | . 2 6 . 10 2 Fabricators 1 | . . . . . 1 Repair Stations 2 | . . . . . 2 Recycling Units 1 | . . . . . 1 Scanalyzers 1 | . . . . 1 . Garrison Access 2 | . . . . 1 1 Total Hacks 74 | . 6 15 . 35 18 Successful 35 | . 2 8 . 19 6 Failed 39 | . 4 7 . 16 12 Catastrophic 9 | . . 1 . 4 4 Database Lockouts . | . . . . . . Manual 44 | . 4 13 . 22 5 Terminals 54 | . 6 15 . 28 5 Fabricators 1 | . . . . . 1 Repair Stations 7 | . . . . . 7 Recycling Units 2 | . . . . . 2 Scanalyzers 5 | . . . . 5 . Garrison Access 5 | . . . . 2 3 Terminal Hacks 9 | . . 2 . 6 1 Level Access Points 2 | . . . . 2 . Branch Access Points 2 | . . 1 . 1 . Alert Level 1 | . . . . . 1 Unreport Threat 1 | . . . . 1 . Locate Traps 1 | . . . . 1 . Recall Investigation 1 | . . . . 1 . Zone Layout 1 | . . 1 . . . Fabricator Hacks 1 | . . . . . 1 Network Status 1 | . . . . . 1 Repair Station Hacks 3 | . . . . . 3 Scan Component 2 | . . . . . 2 Repair 1 | . . . . . 1 Recycling Unit Hacks . | . . . . . . Scanalyzer 4 | . . . . 4 . Insert Component 2 | . . . . 2 . Analyze 2 | . . . . 2 . Garrison Access Hacks 1 | . . . . 1 . Seal Access 1 | . . . . 1 . Unauthorized Hacks 17 | . 2 6 . 8 1 Terminals 17 | . 2 6 . 8 1 Assimilate 1 | . . 1 . . . Botnet 16 | . 2 5 . 8 1 Fabricators . | . . . . . . Repair Stations . | . . . . . . Recycling Units . | . . . . . . Scanalyzers . | . . . . . . Garrison Access . | . . . . . . Data Cores Recovered . | . . . . . . Used . | . . . . . . Hacking Detections 26 | . 2 6 . 11 7 Full Trace Events 7 | . . 1 . 3 3 Feedback Events . | . . . . . . Feedback Blocked . | . . . . . . Robot Schematics Acquired . | . . . . . . Robots Built . | . . . . . . Authchips . | . . . . . . Time . | . . . . . . Total Robot Build Rating . | . . . . . . Part Schematics Acquired . | . . . . . . Parts Built . | . . . . . . Authchips . | . . . . . . Time . | . . . . . . Total Part Build Rating . | . . . . . . Parts Repaired 1 | . . . . . 1 Time 19 | . . . . . 19 Parts Recycled . | . . . . . . Recycled Matter . | . . . . . . Retrieved Matter . | . . . . . . Retrieved Components . | . . . . . . Parts Scanalyzed 2 | . . . . 2 . Part Schematics Acquired . | . . . . . . Parts Damaged . | . . . . . . Bothacking | -11 -10 -9 -9 -8 -7 ------------ Run | Yrd Mat Mat Min Mat Fac Used RIF Installer . | . . . . . . Robots Hacked . | . . . . . . Non-combat . | . . . . . . Combat . | . . . . . . Robot Hacks Applied . | . . . . . . Relay Couplers Released 2 | . . . . . 2 Machine Destruction 2 | . . . . . 2 Fabnet Peak Effective % . | . . . . . . Robots Rewired . | . . . . . . Allies Hacked . | . . . . . . Hacks Repelled . | . . . . . . Allies | -11 -10 -9 -9 -8 -7 -------- Run | Yrd Mat Mat Min Mat Fac Total Allies . | . . . . . . Largest Group . | . . . . . . Highest-Rated Group . | . . . . . . Highest-Rated Ally . | . . . . . . Total Orders . | . . . . . . Ally Attacks . | . . . . . . Total Damage . | . . . . . . Kills . | . . . . . . Allies Corrupted . | . . . . . . Allies Melted . | . . . . . . Intel | -11 -10 -9 -9 -8 -7 ------- Run | Yrd Mat Mat Min Mat Fac Robot Analysis Total . | . . . . . . Derelict Logs Recovered 2 | . . . 2 . . Drone Launches . | . . . . . . Drone Recoveries . | . . . . . . Exploration | -11 -10 -9 -9 -8 -7 ------------- Run | Yrd Mat Mat Min Mat Fac Turns Passed 7816 | 90 1199 1313 1051 2083 2080 Spaces Moved 4097 | 52 615 606 623 1103 1098 Core 4 | 4 . . . . . Treads 4093 | 48 615 606 623 1103 1098 Legs . | . . . . . . Wheels . | . . . . . . Hover . | . . . . . . Flight . | . . . . . . Fastest Speed 50 | 50 160 160 160 156 160 Average Speed 160 | 151 160 162 160 158 162 Slowest Speed 240 | 160 240 240 160 163 165 Overloaded Moves . | . . . . . . Propulsion Burnouts . | . . . . . . Robots Hopped . | . . . . . . Cave-ins Triggered . | . . . . . . Exploration Rate (%) 59 | 4 87 62 80 90 32 Regions Visited 5 Branch Regions 1 Pre-discovered Areas 2 | . . . 2 . . Known Exits Taken 2 | . . 1 . 1 . Unknown Exits Taken 3 | 1 1 . 1 . . Scrap Searched 2 | . . . 2 . . Spaces Dug 5 | . . . . . 5 Terrain Destroyed 173 | . 30 31 . 62 50 Melee . | . . . . . . Projectile 21 | . . 1 . 10 10 AOE 152 | . 30 30 . 52 40 Terrain Rammed . | . . . . . . Walls Destroyed . | . . . . . . Machines Disabled . | . . . . . . Actions | -11 -10 -9 -9 -8 -7 --------- Run | Yrd Mat Mat Min Mat Fac Total 4892 | 60 734 815 669 1332 1282 Wait 319 | . 37 102 23 89 68 Move 4092 | 51 614 605 622 1102 1098 Hop . | . . . . . . Pick Up 60 | 3 13 12 3 19 10 Fast Attach 33 | 6 3 11 . 3 10 Attach 19 | . 2 5 . 7 5 Detach 2 | . . . . 1 1 Swap 44 | . 6 9 . 18 11 Drop 53 | . 5 6 3 25 14 Fire 236 | . 50 63 5 63 55 Melee . | . . . . . . Ram . | . . . . . . Kick . | . . . . . . Crush 21 | . 4 2 . 5 10 Escape Stasis . | . . . . . . Rewire 13 | . . . 13 . . Trap . | . . . . . . Miscellaneous . | . . . . . . Route ------- -11/Scrapyard -10/Materials (discovered 4 exits: *Mat x3 / [*Min]) -9/Materials (discovered 5 exits: *Mat x2 / *Min / *Sto x2) -9/Mines (discovered 2 exits: *Mat / [*Exi]) -8/Materials (discovered 3 exits: *Fac x3) -7/Factory (discovered 1 exit: [*Low]) History --------- Turn | Location | Event 6 | -11/Scrapyard | Discovered new exit (range 16) 91 | -11/Scrapyard | Entered Materials 301 | -10/Materials | Build established: Mutant 345 | -10/Materials | Discovered new exit (range 16) 493 | -10/Materials | Discovered new exit (range 7) 646 | -10/Materials | Discovered new exit (range 11) 1055 | -10/Materials | Discovered new exit (range 8) 1095 | -10/Materials | Core integrity fell below 50% 1290 | -10/Materials | Entered another Materials area 1290 | -9/Materials | Evolved 2 slots: Propulsion x1, Utility x1 2013 | -9/Materials | Discovered new exit (range 8) 2175 | -9/Materials | Discovered new exit (range 4) 2482 | -9/Materials | Discovered new exit (range 4) 2482 | -9/Materials | Discovered new exit (range 16) 2490 | -9/Materials | First assault squad dispatched 2567 | -9/Materials | Identified exit to Mines 2567 | -9/Materials | Identified exit to Storage 2603 | -9/Materials | Entered Mines 2614 | -9/Mines | Received a Rocket Launcher from a helpful Derelict 2676 | -9/Mines | Assembled infested the area 2681 | -9/Mines | Assisted by a Guerilla fighting off Assembled 2765 | -9/Mines | Discovered new exit (range 8) 2869 | -9/Mines | Deemed a non-threat by the Exiles lab entrance 2869 | -9/Mines | Discovered new exit (range 5) 3049 | -9/Mines | Learned location of Storage (-9) 3654 | -9/Mines | Entered Materials 3654 | -8/Materials | Evolved 2 slots: Propulsion x1, Weapon x1 3961 | -8/Materials | Build established: Scavenger-Gunner 4298 | -8/Materials | Destroyed 7 combat bots 4629 | -8/Materials | Discovered new exit (range 4) 4681 | -8/Materials | Build established: Gunner 4896 | -8/Materials | Identified exit to Factory 5737 | -8/Materials | Entered Factory 5737 | -7/Factory | Evolved 2 slots: Utility x2 6331 | -7/Factory | Build established: Tank 7098 | -7/Factory | Build established: Gunner 7170 | -7/Factory | Repaired Arm. Treads 7465 | -7/Factory | Build established: Tank 7528 | -7/Factory | Discovered new exit (range 7) 7737 | -7/Factory | First assault squad dispatched 7817 | -7/Factory | Self-destructed Last Messages --------------- 07794_ L-41 Fighter unfolds itself. 07794_ G-47 Trooper unfolds itself. 07794_ I-36 Angel unfolds itself. 07796_ K-01 Serf cleans the Construction Platform. 07798_ L-41 Fighter knocked back. 07801_ System corrupted: Heat flow error (+275). 07801_ L-41 Fighter knocked back. 07801_ K-01 Serf cleans the Construction Platform. 07804_ Power failure, Enh. Nuclear Core shutdown. 07804_ Overheating: Hrd. Heavy Armor Plating damaged (-85). 07806_ Critical hit (Burn: +37). 07807_ Med. Treads severed. 07807_ K-01 Serf cleans the Construction Platform. 07809_ L-41 Fighter destroyed. 07811_ U-05 Engineer builds a Door. 07812_ Acquired 20 matter. 07813_ K-01 Serf collects debris. 07814_ G-47 Trooper knocked back. 07814_ U-05 Engineer builds a Wall. [Achievement: Just Browsing] Map ----- +----------------------------------------------------+ | ?????????????????????????????????????????######### | | ???????????????????????????????? ???????? | | ??????????????????????????????? ????????? | | ??????????????????????????????? ??????? | | ???????????????????????????????? ?????? | | ????????????????????????????????? ????? | | ????????????????????????????????###+############ | | ????????????????????????????????# #?# | | ????????????????????????????????# = #?# | | ????????????????????????????????# ### | | ????????????????????? ????? # /* = | | ??????????????????? ???" # = ###! | | ??????????????????? ???" # #?# | | ???????????????????# ???" # #?### | | ???????????????????# ^"""" r # #???? | | ???????????????????# """" # #???? | | ??????????????????## """" # #???? | | ?????????????????? + #???? | | ???????????????????# w g# #???? | | ???????????????????# ########+#####???? | | ???????????????????# #??????# #???????? | | ???????????????????# k u #??????# #???????? | | ???????????????????# !== %##?????# #???????? | | ???????????????????+ === g ######## ###### | | ???????????????????# === % u u%Y r + " | | ???????????????????# =@ g ########+###### " | | ???????????????????# Y u #????? ??????? | | ???????????????????#########+####???# """ """????? | | ?????????????????????????? #?????# """S""" #??? | | ????????????????????????"" #?????# #??? | | ?????????????????????? """ #?????###########??? | | ?????????????????????# """ #??????????????????? | | ?????????????????????? #??????????????????? | | ?????????????????????# """ #??????????????????? | | ?????????????????????# """ #??????????????????? | | ?????????????????????? """ #??????????????????? | | ???????????????????????? #??????????????????? | | ?????????????????????????### ##??????????????????? | | ????????????????????????????#????????????????????? | | ?????????????????????????????????????????????????? | | ?????????????????????????????????????????????????? | | ?????????????????????????????????????????????????? | | ?????????????????????????????????????????????????? | | ?????????????????????????????????????????????????? | | ?????????????????????????????????????????????????? | | ?????????????????????????????????????????????????? | | ?????????????????????????????????????????????????? | | ?????????????????????????????????????????????????? | | ?????????????????????????????????????????????????? | | ?????????????????????????????????????????????????? | +----------------------------------------------------+ Best States ------------- Heat Dissipation 56 Energy Generation 17 Energy Capacity 300 Matter Stores 300 Matter Capacity 300 Sight Range 16 Terrain Scan Density 10 Armor Coverage 600 Resistance: TH 15 Weapon Cycling 15 Evasion (%) 40 Targeting Accuracy 6 Recoil Reduction 4 Item Schematics ----------------- None Robot Schematics ------------------ None Fabricated ------------ Nothing Alien Tech Used ----------------- None Achievements -------------- Just Browsing Challenges ------------ None Game ------ Seed TransdimensionalIonDetector Manual? 0 Play Time 01:11:37 Cumulative 34.0 hours Start 2024.04.07 @ 20:40:44 End 2024.04.08 @ 17:56:35 Sessions 4 Manual Loads 0 Difficulty Rogue Special Mode None Game No. 49 Rogue 49 Adventurer 0 Explorer 0 Win Type - Total 0 Types 0/0/0/0/0/0/0/0/0 Lore% 16 Gallery% 25 Achievement% 24 Wizard Run 0 Options --------- Layout 2 ASCII 0 Keyboard 1 Movement Numpad Keybinds 0 Fullscreen 2 Font 20/X11 Map View 64x51 Zoom Use 0% Tactical HUD 1 Map Filters NONE Filters NONE Steam 1 RUN: 7cedb253-3985-4ed7-8ec2-dde27ca92822